[Event "*** SCC Grand Prix: Titled Tuesday Blitz"]
[Site "Chess.com"]
[Date "2020.06.09"]
[Round "8"]
[White "vaishali2001"]
[Black "LisikValera"]
[Result "0-1"]
[WhiteElo "2613"]
[BlackElo "2484"]
[TimeControl "180+1"]
[EndTime "10:35:27 PDT"]
[Termination "LisikValera won by resignation"]

1. e4 {[%clk 0:03:00.9]} 1... e6 {[%clk 0:03:00]} 2. d4 {[%clk 0:03:00]} 2... d5
{[%clk 0:03:00.9]} 3. Nd2 {[%clk 0:03:00]} 3... Nc6 {[%clk 0:02:59.4]} 4. Ngf3
{[%clk 0:02:59.1]} 4... Nf6 {[%clk 0:02:59.9]} 5. e5 {[%clk 0:02:56]} 5... Nd7
{[%clk 0:03:00.4]} 6. Bd3 {[%clk 0:02:56.6]} 6... Nb4 {[%clk 0:02:58.3]} 7. Be2
{[%clk 0:02:56.8]} 7... c5 {[%clk 0:02:58.9]} 8. c3 {[%clk 0:02:57.2]} 8... Nc6
{[%clk 0:02:59.4]} 9. Bd3 {[%clk 0:02:58.1]} 9... f6 {[%clk 0:02:59.4]} 10. exf6
{[%clk 0:02:49.9]} 10... Qxf6 {[%clk 0:02:59.1]} 11. O-O {[%clk 0:02:50.6]}
11... Bd6 {[%clk 0:02:58.6]} 12. Re1 {[%clk 0:02:50.8]} 12... O-O {[%clk
0:02:57.5]} 13. Bxh7+ {[%clk 0:02:47.8]} 13... Kh8 {[%clk 0:02:26.8]} 14. Nf1
{[%clk 0:02:45.7]} 14... e5 {[%clk 0:02:23.8]} 15. dxe5 {[%clk 0:02:15.2]} 15...
Ndxe5 {[%clk 0:02:21.4]} 16. Ng5 {[%clk 0:01:00.8]} 16... Qxf2+ {[%clk
0:02:07.1]} 17. Kh1 {[%clk 0:01:00.9]} 17... Bg4 {[%clk 0:02:06.3]} 18. Be3
{[%clk 0:00:58.5]} 18... Bxd1 {[%clk 0:01:28.9]} 19. Bxf2 {[%clk 0:00:56.4]}
19... Rxf2 {[%clk 0:01:13.2]} 20. Raxd1 {[%clk 0:00:55.2]} 20... d4 {[%clk
0:01:13.2]} 21. Ne4 {[%clk 0:00:44.5]} 21... Rxb2 {[%clk 0:01:09.3]} 22. Nxd6
{[%clk 0:00:20.4]} 22... Kxh7 {[%clk 0:01:08]} 23. cxd4 {[%clk 0:00:20.7]} 23...
cxd4 {[%clk 0:01:06.9]} 24. a4 {[%clk 0:00:19.1]} 24... Rf8 {[%clk 0:01:02.4]}
25. Nd2 {[%clk 0:00:03.4]} 25... Rf2 {[%clk 0:00:50.7]} 26. N6e4 {[%clk
0:00:03.2]} 26... Nd3 {[%clk 0:00:45.3]} 27. Rg1 {[%clk 0:00:02.5]} 27... Rfxd2
{[%clk 0:00:43.6]} 28. Rdf1 {[%clk 0:00:01.9]} 28... Nf2+ {[%clk 0:00:42.8]} 29.
Nxf2 {[%clk 0:00:01.8]} 29... Rxf2 {[%clk 0:00:43.7]} 30. Rd1 {[%clk 0:00:02.4]}
30... Rbd2 {[%clk 0:00:36.6]} 31. h4 {[%clk 0:00:03.3]} 31... Rxd1 {[%clk
0:00:35.4]} 32. Rxd1 {[%clk 0:00:03.5]} 32... Kg6 {[%clk 0:00:34.6]} 33. Kh2
{[%clk 0:00:02.9]} 33... Kf5 {[%clk 0:00:34.1]} 34. Kh3 {[%clk 0:00:02.7]} 34...
Ke4 {[%clk 0:00:33]} 35. Rb1 {[%clk 0:00:02.2]} 35... d3 {[%clk 0:00:30.7]} 36.
Rxb7 {[%clk 0:00:02.8]} 36... d2 {[%clk 0:00:30.8]} 37. Rd7 {[%clk 0:00:03.4]}
37... Nd4 {[%clk 0:00:30.2]} 0-1

[Event "*** SCC Grand Prix: Titled Tuesday Blitz"]
[Site "Chess.com"]
[Date "2020.06.09"]
[Round "8"]
[White "shineatchess"]
[Black "juniortay"]
[Result "0-1"]
[WhiteElo "2241"]
[BlackElo "2401"]
[TimeControl "180+1"]
[EndTime "10:35:28 PDT"]
[Termination "juniortay won on time"]

1. e4 {[%clk 0:03:00.9]} 1... e6 {[%clk 0:02:59.7]} 2. d4 {[%clk 0:02:59.9]}
2... c5 {[%clk 0:02:59.6]} 3. d5 {[%clk 0:02:57.1]} 3... exd5 {[%clk 0:02:54.9]}
4. exd5 {[%clk 0:02:56.6]} 4... d6 {[%clk 0:02:54.6]} 5. Bb5+ {[%clk 0:02:38.6]}
5... Bd7 {[%clk 0:02:52.3]} 6. a4 {[%clk 0:02:32.1]} 6... Nf6 {[%clk 0:02:51.9]}
7. Nf3 {[%clk 0:02:30.4]} 7... Be7 {[%clk 0:02:51.8]} 8. O-O {[%clk 0:02:29]}
8... O-O {[%clk 0:02:52]} 9. h3 {[%clk 0:02:22.8]} 9... Bf5 {[%clk 0:02:50.8]}
10. Nc3 {[%clk 0:02:18.3]} 10... Nbd7 {[%clk 0:02:49.2]} 11. Re1 {[%clk
0:02:06.8]} 11... a6 {[%clk 0:02:46.7]} 12. Bd3 {[%clk 0:01:59.4]} 12... Bg6
{[%clk 0:02:44.4]} 13. Bf4 {[%clk 0:01:49.4]} 13... Rb8 {[%clk 0:02:41.5]} 14.
a5 {[%clk 0:01:38.8]} 14... Re8 {[%clk 0:02:31.5]} 15. Bxg6 {[%clk 0:01:37.4]}
15... hxg6 {[%clk 0:02:30.8]} 16. Nd2 {[%clk 0:01:37.3]} 16... b5 {[%clk
0:02:13.1]} 17. axb6 {[%clk 0:01:36.6]} 17... Nxb6 {[%clk 0:02:12.6]} 18. Nb3
{[%clk 0:01:21.7]} 18... Nc4 {[%clk 0:02:03.6]} 19. Qc1 {[%clk 0:01:08.7]} 19...
a5 {[%clk 0:01:59.8]} 20. Ra4 {[%clk 0:01:03.9]} 20... Rb4 {[%clk 0:01:57.4]}
21. Bg3 {[%clk 0:00:41.8]} 21... Qd7 {[%clk 0:01:56]} 22. Ra2 {[%clk 0:00:37.8]}
22... a4 {[%clk 0:01:53]} 23. Nd2 {[%clk 0:00:37.4]} 23... Reb8 {[%clk
0:01:45.5]} 24. Nxc4 {[%clk 0:00:36.7]} 24... Rxc4 {[%clk 0:01:44.7]} 25. Qe3
{[%clk 0:00:34.4]} 25... Bf8 {[%clk 0:01:43]} 26. Rea1 {[%clk 0:00:18.6]} 26...
Rcb4 {[%clk 0:01:33.4]} 27. Qc1 {[%clk 0:00:18.2]} 27... Qf5 {[%clk 0:01:31.3]}
28. Rxa4 {[%clk 0:00:16.6]} 28... Nxd5 {[%clk 0:01:30.2]} 29. Nxd5 {[%clk
0:00:13.6]} 29... Qxd5 {[%clk 0:01:28.4]} 30. Rxb4 {[%clk 0:00:10.9]} 30... Rxb4
{[%clk 0:01:27.9]} 31. c3 {[%clk 0:00:07.9]} 31... Re4 {[%clk 0:01:27.1]} 32.
Qc2 {[%clk 0:00:06.4]} 32... Qe6 {[%clk 0:01:23.6]} 33. Rd1 {[%clk 0:00:06]}
33... d5 {[%clk 0:01:17.3]} 34. Kh2 {[%clk 0:00:05.6]} 34... Kh7 {[%clk
0:01:14.7]} 35. Qd3 {[%clk 0:00:05.4]} 35... d4 {[%clk 0:01:13.5]} 36. cxd4
{[%clk 0:00:05.4]} 36... Rxd4 {[%clk 0:01:13.1]} 37. Qc2 {[%clk 0:00:06]} 37...
Re4 {[%clk 0:01:10.5]} 38. Qd3 {[%clk 0:00:05.4]} 38... c4 {[%clk 0:01:09.6]}
39. Qc3 {[%clk 0:00:04]} 39... Be7 {[%clk 0:01:07.3]} 40. Rc1 {[%clk 0:00:03.2]}
40... Bf6 {[%clk 0:01:06.6]} 41. Qa5 {[%clk 0:00:02.2]} 41... Re2 {[%clk
0:01:03.8]} 42. Rc2 {[%clk 0:00:02.3]} 42... Rxc2 {[%clk 0:01:01.9]} 43. Qc5
{[%clk 0:00:01.4]} 43... Rxb2 {[%clk 0:00:59.6]} 0-1

[Event "*** SCC Grand Prix: Titled Tuesday Blitz"]
[Site "Chess.com"]
[Date "2020.06.09"]
[Round "8"]
[White "awesomevishesh"]
[Black "GaboSalazar2001"]
[Result "0-1"]
[WhiteElo "2400"]
[BlackElo "2280"]
[TimeControl "180+1"]
[EndTime "10:35:31 PDT"]
[Termination "GaboSalazar2001 won by resignation"]

1. d4 {[%clk 0:03:00.9]} 1... Nf6 {[%clk 0:02:59.7]} 2. c4 {[%clk 0:03:00.6]}
2... c5 {[%clk 0:03:00.2]} 3. d5 {[%clk 0:03:00.5]} 3... b5 {[%clk 0:03:00.9]}
4. cxb5 {[%clk 0:02:56.8]} 4... a6 {[%clk 0:03:01.5]} 5. b6 {[%clk 0:02:56.2]}
5... g6 {[%clk 0:03:01.6]} 6. Nc3 {[%clk 0:02:55.6]} 6... Bg7 {[%clk 0:03:01.9]}
7. e4 {[%clk 0:02:55.6]} 7... d6 {[%clk 0:03:01.6]} 8. a4 {[%clk 0:02:55.2]}
8... a5 {[%clk 0:02:59.9]} 9. Nf3 {[%clk 0:02:54.9]} 9... O-O {[%clk 0:02:59.8]}
10. Nd2 {[%clk 0:02:54.1]} 10... Nbd7 {[%clk 0:03:00.5]} 11. Be2 {[%clk
0:02:46.9]} 11... Nxb6 {[%clk 0:03:01.1]} 12. O-O {[%clk 0:02:47.6]} 12... e6
{[%clk 0:03:01.7]} 13. Nc4 {[%clk 0:02:47.1]} 13... exd5 {[%clk 0:02:55.6]} 14.
exd5 {[%clk 0:02:44]} 14... Re8 {[%clk 0:02:47.3]} 15. Nxb6 {[%clk 0:02:37.2]}
15... Qxb6 {[%clk 0:02:45.3]} 16. Bb5 {[%clk 0:02:33.9]} 16... Bd7 {[%clk
0:02:35.6]} 17. Bf4 {[%clk 0:02:33.4]} 17... Bxb5 {[%clk 0:02:26.1]} 18. Nxb5
{[%clk 0:02:32.4]} 18... Rad8 {[%clk 0:01:56.9]} 19. Qd3 {[%clk 0:02:12.2]}
19... Re4 {[%clk 0:01:44.6]} 20. Bd2 {[%clk 0:02:01.8]} 20... c4 {[%clk
0:01:38.8]} 21. Qf3 {[%clk 0:01:57.7]} 21... Rde8 {[%clk 0:01:30.2]} 22. Bc3
{[%clk 0:01:39]} 22... Nxd5 {[%clk 0:01:25.1]} 23. Bxg7 {[%clk 0:01:32.9]} 23...
Kxg7 {[%clk 0:01:26]} 24. Rad1 {[%clk 0:01:29.8]} 24... Qc5 {[%clk 0:01:26]} 25.
h4 {[%clk 0:01:16.3]} 25... R8e6 {[%clk 0:01:25.4]} 26. Rd2 {[%clk 0:01:01.4]}
26... Nf4 {[%clk 0:01:17]} 27. Nc3 {[%clk 0:00:53.8]} 27... Rd4 {[%clk
0:00:57.4]} 28. Rfd1 {[%clk 0:00:51.4]} 28... Rxd2 {[%clk 0:00:53.4]} 29. Rxd2
{[%clk 0:00:51.1]} 29... Qe5 {[%clk 0:00:40.4]} 30. Rd1 {[%clk 0:00:38.6]} 30...
Nd3 {[%clk 0:00:40.5]} 31. Qb7 {[%clk 0:00:25]} 31... Qf4 {[%clk 0:00:27.6]} 32.
Rf1 {[%clk 0:00:20]} 32... Re1 {[%clk 0:00:23.5]} 33. Rxe1 {[%clk 0:00:02.8]}
33... Qxf2+ {[%clk 0:00:23.3]} 34. Kh2 {[%clk 0:00:03.1]} 34... Qxh4+ {[%clk
0:00:23.3]} 35. Kg1 {[%clk 0:00:03.7]} 35... Qxe1+ {[%clk 0:00:23]} 36. Kh2
{[%clk 0:00:04.6]} 0-1

[Event "*** SCC Grand Prix: Titled Tuesday Blitz"]
[Site "Chess.com"]
[Date "2020.06.09"]
[Round "8"]
[White "kirillshevchenko"]
[Black "Karateloru"]
[Result "1-0"]
[WhiteElo "2901"]
[BlackElo "2624"]
[TimeControl "180+1"]
[EndTime "10:35:32 PDT"]
[Termination "kirillshevchenko won by checkmate"]

1. e4 {[%clk 0:03:00.9]} 1... c5 {[%clk 0:02:59.9]} 2. Nf3 {[%clk 0:03:00.6]}
2... e6 {[%clk 0:03:00.5]} 3. d4 {[%clk 0:03:00.4]} 3... cxd4 {[%clk 0:03:01.4]}
4. Nxd4 {[%clk 0:03:01.3]} 4... Bc5 {[%clk 0:03:02]} 5. Nb3 {[%clk 0:03:01.1]}
5... Bb6 {[%clk 0:03:02.2]} 6. c4 {[%clk 0:03:00.8]} 6... Ne7 {[%clk 0:03:02.1]}
7. Nc3 {[%clk 0:03:00.5]} 7... O-O {[%clk 0:03:01]} 8. Bd3 {[%clk 0:03:00.9]}
8... f5 {[%clk 0:03:01.2]} 9. O-O {[%clk 0:02:59.5]} 9... Nbc6 {[%clk
0:03:00.9]} 10. c5 {[%clk 0:02:40.4]} 10... Bc7 {[%clk 0:03:00.7]} 11. Nb5
{[%clk 0:02:41]} 11... Be5 {[%clk 0:02:59.9]} 12. f4 {[%clk 0:02:38.2]} 12...
fxe4 {[%clk 0:02:58.3]} 13. Bxe4 {[%clk 0:02:36.1]} 13... Bf6 {[%clk 0:02:51.1]}
14. Be3 {[%clk 0:01:49.7]} 14... b6 {[%clk 0:02:48.2]} 15. Qc2 {[%clk 0:01:45]}
15... Nf5 {[%clk 0:02:36.5]} 16. Bxf5 {[%clk 0:01:41.3]} 16... exf5 {[%clk
0:02:37.4]} 17. Nd6 {[%clk 0:01:37.6]} 17... Ba6 {[%clk 0:02:31.4]} 18. Rfe1
{[%clk 0:01:32.3]} 18... g6 {[%clk 0:02:30.4]} 19. Rad1 {[%clk 0:01:27.4]} 19...
Qc7 {[%clk 0:02:25.6]} 20. Qd2 {[%clk 0:01:24.2]} 20... Kg7 {[%clk 0:02:19.7]}
21. a4 {[%clk 0:01:17.9]} 21... Rab8 {[%clk 0:02:17.7]} 22. Nb5 {[%clk
0:01:17.5]} 22... Qc8 {[%clk 0:01:37.8]} 23. Qxd7+ {[%clk 0:01:13.9]} 23... Kh8
{[%clk 0:01:37.8]} 24. cxb6 {[%clk 0:01:05.1]} 24... axb6 {[%clk 0:01:33.8]} 25.
Qxc8 {[%clk 0:00:52.1]} 25... Rfxc8 {[%clk 0:01:15.9]} 26. Nd6 {[%clk
0:00:42.3]} 26... Rc7 {[%clk 0:01:11.3]} 27. Nd4 {[%clk 0:00:42.3]} 27... Nb4
{[%clk 0:01:03.6]} 28. Ne6 {[%clk 0:00:32.2]} 28... Rc2 {[%clk 0:01:01.9]} 29.
Nf7+ {[%clk 0:00:31.7]} 29... Kg8 {[%clk 0:01:00.9]} 30. Nh6+ {[%clk 0:00:32.6]}
30... Kh8 {[%clk 0:01:01.1]} 31. Bd4 {[%clk 0:00:33.3]} 31... Bxd4+ {[%clk
0:00:59.9]} 32. Rxd4 {[%clk 0:00:34.2]} 32... Nd3 {[%clk 0:00:52.5]} 33. Rd7
{[%clk 0:00:19.7]} 33... Nxe1 {[%clk 0:00:41.2]} 34. Rg7 {[%clk 0:00:19.8]}
34... Rc7 {[%clk 0:00:13]} 35. Rxc7 {[%clk 0:00:17.4]} 35... Bc8 {[%clk
0:00:10.2]} 36. Ng5 {[%clk 0:00:14.6]} 36... Bb7 {[%clk 0:00:10.2]} 37. Rxh7#
{[%clk 0:00:14.1]} 1-0

[Event "*** SCC Grand Prix: Titled Tuesday Blitz"]
[Site "Chess.com"]
[Date "2020.06.09"]
[Round "8"]
[White "TregubovP"]
[Black "ZAbdumalik"]
[Result "0-1"]
[WhiteElo "2570"]
[BlackElo "2732"]
[TimeControl "180+1"]
[EndTime "10:35:32 PDT"]
[Termination "ZAbdumalik won by resignation"]

1. e4 {[%clk 0:03:00.9]} 1... e5 {[%clk 0:02:59.7]} 2. Nf3 {[%clk 0:03:00.1]}
2... Nc6 {[%clk 0:02:59.8]} 3. Bb5 {[%clk 0:03:00.6]} 3... a6 {[%clk 0:02:59.8]}
4. Ba4 {[%clk 0:03:00.6]} 4... Nf6 {[%clk 0:03:00.3]} 5. d4 {[%clk 0:03:00.9]}
5... exd4 {[%clk 0:02:54.8]} 6. O-O {[%clk 0:02:59.3]} 6... b5 {[%clk 0:02:53]}
7. Bb3 {[%clk 0:02:58.8]} 7... Be7 {[%clk 0:02:47.4]} 8. e5 {[%clk 0:02:57.7]}
8... Ne4 {[%clk 0:02:47.7]} 9. Nxd4 {[%clk 0:02:57.3]} 9... Nc5 {[%clk
0:02:37.6]} 10. Nf5 {[%clk 0:02:50.9]} 10... O-O {[%clk 0:02:28.5]} 11. Qg4
{[%clk 0:02:44.8]} 11... g6 {[%clk 0:02:28.8]} 12. Nxe7+ {[%clk 0:02:37]} 12...
Qxe7 {[%clk 0:02:26.6]} 13. Qg3 {[%clk 0:02:14.8]} 13... Qxe5 {[%clk 0:02:15.8]}
14. Bf4 {[%clk 0:02:09.7]} 14... Qxb2 {[%clk 0:02:14.6]} 15. Nd2 {[%clk
0:02:09.8]} 15... Nxb3 {[%clk 0:02:11.7]} 16. cxb3 {[%clk 0:02:07.4]} 16... d6
{[%clk 0:02:07.4]} 17. Rac1 {[%clk 0:01:47.9]} 17... Nd4 {[%clk 0:02:05.6]} 18.
Qe3 {[%clk 0:01:31.9]} 18... Bf5 {[%clk 0:01:59.9]} 19. Rb1 {[%clk 0:01:14.3]}
19... Bxb1 {[%clk 0:01:45.3]} 20. Rxb1 {[%clk 0:01:14.1]} 20... Qc3 {[%clk
0:01:45.7]} 21. Ne4 {[%clk 0:01:06.1]} 21... Qxe3 {[%clk 0:01:40.2]} 22. Bxe3
{[%clk 0:01:06.4]} 22... Nf5 {[%clk 0:01:35.5]} 23. Bd2 {[%clk 0:01:00.5]} 23...
f6 {[%clk 0:01:33.3]} 24. Rc1 {[%clk 0:00:57]} 24... Rac8 {[%clk 0:01:30.9]} 25.
g4 {[%clk 0:00:53.5]} 25... Nd4 {[%clk 0:01:27.7]} 26. Kg2 {[%clk 0:00:54]}
26... Kf7 {[%clk 0:01:20.4]} 27. Be3 {[%clk 0:00:53.4]} 27... Ne6 {[%clk
0:01:19.7]} 28. Rc6 {[%clk 0:00:51.6]} 28... Ke7 {[%clk 0:01:15.6]} 29. Nc3
{[%clk 0:00:46.1]} 29... Kd7 {[%clk 0:01:12.6]} 30. Rxa6 {[%clk 0:00:46]} 30...
Ra8 {[%clk 0:01:12.8]} 31. Rxa8 {[%clk 0:00:39.5]} 31... Rxa8 {[%clk 0:01:12.7]}
32. Kf3 {[%clk 0:00:39.4]} 32... b4 {[%clk 0:01:10.9]} 33. Na4 {[%clk
0:00:38.2]} 33... d5 {[%clk 0:01:06.2]} 34. Bd2 {[%clk 0:00:33.6]} 34... Rb8
{[%clk 0:01:05.1]} 35. Ke3 {[%clk 0:00:32.1]} 35... Kd6 {[%clk 0:01:04.3]} 36.
f4 {[%clk 0:00:30]} 36... c5 {[%clk 0:01:03.1]} 37. f5 {[%clk 0:00:27.3]} 37...
gxf5 {[%clk 0:00:59.1]} 38. gxf5 {[%clk 0:00:27.5]} 38... Nd4 {[%clk 0:00:57.7]}
39. Kd3 {[%clk 0:00:27.6]} 39... Rg8 {[%clk 0:00:53]} 40. Be3 {[%clk 0:00:20.5]}
40... Rg4 {[%clk 0:00:43.4]} 41. Nb6 {[%clk 0:00:17.5]} 41... Nxf5 {[%clk
0:00:41.4]} 42. Bf2 {[%clk 0:00:17.8]} 42... Rf4 {[%clk 0:00:38.2]} 43. Be1
{[%clk 0:00:17.5]} 43... Rf3+ {[%clk 0:00:35.1]} 44. Ke2 {[%clk 0:00:17.1]}
44... Rh3 {[%clk 0:00:35.1]} 45. Nc8+ {[%clk 0:00:16.1]} 45... Ke5 {[%clk
0:00:34.9]} 46. Nb6 {[%clk 0:00:12.7]} 46... Rxh2+ {[%clk 0:00:34.3]} 0-1

[Event "*** SCC Grand Prix: Titled Tuesday Blitz"]
[Site "Chess.com"]
[Date "2020.06.09"]
[Round "8"]
[White "anastasiyakarlovych"]
[Black "CrazyMartian"]
[Result "1/2-1/2"]
[WhiteElo "2000"]
[BlackElo "2281"]
[TimeControl "180+1"]
[EndTime "10:35:32 PDT"]
[Termination "Game drawn by repetition"]

1. e4 {[%clk 0:03:00.9]} 1... c5 {[%clk 0:02:56.3]} 2. Nf3 {[%clk 0:02:59.6]}
2... d6 {[%clk 0:02:44.5]} 3. Bc4 {[%clk 0:02:57.9]} 3... Nf6 {[%clk 0:02:43]}
4. e5 {[%clk 0:02:57.1]} 4... dxe5 {[%clk 0:02:41]} 5. Nxe5 {[%clk 0:02:56.9]}
5... e6 {[%clk 0:02:41.6]} 6. Qe2 {[%clk 0:02:57]} 6... Bd7 {[%clk 0:02:39.5]}
7. b3 {[%clk 0:02:53.3]} 7... Nc6 {[%clk 0:02:39.5]} 8. Bb2 {[%clk 0:02:50.6]}
8... Nxe5 {[%clk 0:02:37.3]} 9. Bxe5 {[%clk 0:02:49.4]} 9... Bc6 {[%clk
0:02:33.6]} 10. O-O {[%clk 0:02:47]} 10... Bd6 {[%clk 0:02:32.4]} 11. Bb2 {[%clk
0:02:29.6]} 11... Qc7 {[%clk 0:02:20.3]} 12. h3 {[%clk 0:02:24.5]} 12... Nd5
{[%clk 0:02:16.8]} 13. Bxd5 {[%clk 0:02:05]} 13... Bxd5 {[%clk 0:02:16.5]} 14.
c4 {[%clk 0:02:01.6]} 14... Bc6 {[%clk 0:02:12.9]} 15. d4 {[%clk 0:02:01.6]}
15... cxd4 {[%clk 0:02:11.7]} 16. Bxd4 {[%clk 0:02:00.7]} 16... O-O {[%clk
0:01:53.5]} 17. Qg4 {[%clk 0:01:53.5]} 17... Be5 {[%clk 0:01:49.2]} 18. Bxe5
{[%clk 0:01:42.2]} 18... Qxe5 {[%clk 0:01:50.1]} 19. Nd2 {[%clk 0:01:42.1]}
19... Rad8 {[%clk 0:01:44.5]} 20. Nf3 {[%clk 0:01:37.7]} 20... Qe4 {[%clk
0:01:38.3]} 21. Rad1 {[%clk 0:01:31]} 21... Qxg4 {[%clk 0:01:34.9]} 22. hxg4
{[%clk 0:01:30.4]} 22... Bxf3 {[%clk 0:01:33.5]} 23. gxf3 {[%clk 0:01:29.8]}
23... f6 {[%clk 0:01:31.5]} 24. f4 {[%clk 0:01:22.2]} 24... Kf7 {[%clk
0:01:30.6]} 25. f3 {[%clk 0:01:20.8]} 25... h6 {[%clk 0:01:28.4]} 26. Kf2 {[%clk
0:01:20]} 26... Ke7 {[%clk 0:01:28.1]} 27. Ke3 {[%clk 0:01:19.2]} 27... a6
{[%clk 0:01:18.6]} 28. Rfe1 {[%clk 0:01:02.6]} 28... Rc8 {[%clk 0:01:08.6]} 29.
Rd2 {[%clk 0:00:57.7]} 29... Rfd8 {[%clk 0:01:07.8]} 30. Red1 {[%clk 0:00:57.3]}
30... Rxd2 {[%clk 0:01:07.2]} 31. Rxd2 {[%clk 0:00:57.3]} 31... b5 {[%clk
0:01:06.1]} 32. cxb5 {[%clk 0:00:50.7]} 32... axb5 {[%clk 0:01:05.8]} 33. a4
{[%clk 0:00:46.6]} 33... bxa4 {[%clk 0:00:52.9]} 34. bxa4 {[%clk 0:00:45.8]}
34... Rc4 {[%clk 0:00:37.8]} 35. Ra2 {[%clk 0:00:39.9]} 35... Kd6 {[%clk
0:00:35.6]} 36. a5 {[%clk 0:00:39.4]} 36... Kc7 {[%clk 0:00:32.7]} 37. a6 {[%clk
0:00:28.5]} 37... Kb8 {[%clk 0:00:32.4]} 38. a7+ {[%clk 0:00:24.6]} 38... Ka8
{[%clk 0:00:32.4]} 39. Ra6 {[%clk 0:00:21.6]} 39... Rc3+ {[%clk 0:00:27.2]} 40.
Ke4 {[%clk 0:00:21.2]} 40... Rc4+ {[%clk 0:00:27.2]} 41. Ke3 {[%clk 0:00:21.3]}
41... Rc3+ {[%clk 0:00:24.7]} 42. Ke4 {[%clk 0:00:21.5]} 42... Rc4+ {[%clk
0:00:20.8]} 43. Ke3 {[%clk 0:00:21.7]} 1/2-1/2

[Event "*** SCC Grand Prix: Titled Tuesday Blitz"]
[Site "Chess.com"]
[Date "2020.06.09"]
[Round "8"]
[White "MusicCityMaster"]
[Black "maciejos95"]
[Result "1-0"]
[WhiteElo "2344"]
[BlackElo "2465"]
[TimeControl "180+1"]
[EndTime "10:35:34 PDT"]
[Termination "MusicCityMaster won by resignation"]

1. e4 {[%clk 0:02:48.5]} 1... c5 {[%clk 0:02:59.6]} 2. Nf3 {[%clk 0:02:48.3]}
2... d6 {[%clk 0:02:59.7]} 3. d4 {[%clk 0:02:48.4]} 3... cxd4 {[%clk 0:03:00]}
4. Nxd4 {[%clk 0:02:49.3]} 4... Nf6 {[%clk 0:03:00.4]} 5. Nc3 {[%clk 0:02:50]}
5... g6 {[%clk 0:03:01]} 6. Bg5 {[%clk 0:02:46.5]} 6... Bg7 {[%clk 0:03:00.4]}
7. Bb5+ {[%clk 0:02:47]} 7... Bd7 {[%clk 0:02:54]} 8. Qe2 {[%clk 0:02:46.8]}
8... O-O {[%clk 0:02:52.4]} 9. O-O-O {[%clk 0:02:46.5]} 9... Bxb5 {[%clk
0:02:44.5]} 10. Ndxb5 {[%clk 0:02:40.2]} 10... a6 {[%clk 0:02:41.3]} 11. Nd4
{[%clk 0:02:19.7]} 11... Qa5 {[%clk 0:02:40.2]} 12. f4 {[%clk 0:02:18]} 12...
Nc6 {[%clk 0:02:14.6]} 13. Nb3 {[%clk 0:02:16.8]} 13... Qc7 {[%clk 0:02:07.6]}
14. Bxf6 {[%clk 0:02:16.3]} 14... exf6 {[%clk 0:02:03.2]} 15. Nd5 {[%clk
0:02:16.4]} 15... Qd8 {[%clk 0:01:58]} 16. Rhe1 {[%clk 0:02:06.3]} 16... Rc8
{[%clk 0:01:55.7]} 17. Kb1 {[%clk 0:02:05.7]} 17... a5 {[%clk 0:01:49.5]} 18.
Qb5 {[%clk 0:01:56.5]} 18... Ne7 {[%clk 0:01:18.3]} 19. Qxa5 {[%clk 0:01:31]}
19... Nxd5 {[%clk 0:01:12.9]} 20. Rxd5 {[%clk 0:01:28.1]} 20... Qe7 {[%clk
0:01:10.5]} 21. Qd2 {[%clk 0:01:22.1]} 21... f5 {[%clk 0:00:50]} 22. exf5 {[%clk
0:01:16.6]} 22... Qf6 {[%clk 0:00:47.9]} 23. c3 {[%clk 0:01:16.9]} 23... Rfe8
{[%clk 0:00:45.8]} 24. Rd1 {[%clk 0:01:09.2]} 24... Re4 {[%clk 0:00:35.6]} 25.
g4 {[%clk 0:00:55.4]} 25... Qe7 {[%clk 0:00:35.5]} 26. Rxd6 {[%clk 0:00:50.2]}
26... Re2 {[%clk 0:00:32.9]} 27. Rd8+ {[%clk 0:00:49.5]} 27... Bf8 {[%clk
0:00:33.3]} 28. Qd3 {[%clk 0:00:39.3]} 28... Rxd8 {[%clk 0:00:29.6]} 29. Qxd8
{[%clk 0:00:38.9]} 29... Qe3 {[%clk 0:00:19.6]} 30. fxg6 {[%clk 0:00:22.8]}
30... hxg6 {[%clk 0:00:19.1]} 31. f5 {[%clk 0:00:19.8]} 31... Qf2 {[%clk
0:00:18.3]} 32. Rd2 {[%clk 0:00:17.8]} 32... Re1+ {[%clk 0:00:14.4]} 33. Kc2
{[%clk 0:00:17.9]} 33... Qf3 {[%clk 0:00:11.4]} 34. fxg6 {[%clk 0:00:17]} 34...
fxg6 {[%clk 0:00:09.9]} 35. Qd5+ {[%clk 0:00:17]} 35... Qxd5 {[%clk 0:00:09.1]}
36. Rxd5 {[%clk 0:00:17.9]} 36... Re4 {[%clk 0:00:08.9]} 37. h3 {[%clk
0:00:16.7]} 37... Re3 {[%clk 0:00:09.3]} 38. Rd3 {[%clk 0:00:16.9]} 38... Re2+
{[%clk 0:00:09.8]} 39. Nd2 {[%clk 0:00:17.1]} 39... Re3 {[%clk 0:00:10.4]} 40.
Rxe3 {[%clk 0:00:17]} 1-0

[Event "*** SCC Grand Prix: Titled Tuesday Blitz"]
[Site "Chess.com"]
[Date "2020.06.09"]
[Round "8"]
[White "szefru"]
[Black "kuba2006"]
[Result "0-1"]
[WhiteElo "2131"]
[BlackElo "2306"]
[TimeControl "180+1"]
[EndTime "10:35:34 PDT"]
[Termination "kuba2006 won on time"]

1. b3 {[%clk 0:03:00.9]} 1... Nf6 {[%clk 0:03:00.9]} 2. Bb2 {[%clk 0:03:00.8]}
2... g6 {[%clk 0:02:58.2]} 3. Nf3 {[%clk 0:03:01.3]} 3... Bg7 {[%clk 0:02:58.1]}
4. d3 {[%clk 0:03:01.4]} 4... O-O {[%clk 0:02:57.9]} 5. e4 {[%clk 0:03:01.8]}
5... d6 {[%clk 0:02:57.5]} 6. Be2 {[%clk 0:03:02.3]} 6... e5 {[%clk 0:02:57.4]}
7. Nbd2 {[%clk 0:03:02.8]} 7... Nc6 {[%clk 0:02:57.2]} 8. O-O {[%clk 0:03:03.2]}
8... Nh5 {[%clk 0:02:56.9]} 9. g3 {[%clk 0:03:01.8]} 9... Kh8 {[%clk 0:02:54.4]}
10. Nh4 {[%clk 0:02:56.6]} 10... Nf4 {[%clk 0:02:43.8]} 11. Bg4 {[%clk
0:02:38.2]} 11... f5 {[%clk 0:02:26.9]} 12. exf5 {[%clk 0:02:36.3]} 12... gxf5
{[%clk 0:02:27.8]} 13. Bf3 {[%clk 0:02:28.1]} 13... Nh3+ {[%clk 0:02:22.3]} 14.
Kg2 {[%clk 0:02:24.6]} 14... Ng5 {[%clk 0:02:18.1]} 15. Bxc6 {[%clk 0:02:14.8]}
15... bxc6 {[%clk 0:02:16.8]} 16. f4 {[%clk 0:02:14.7]} 16... Nf7 {[%clk
0:01:33.9]} 17. Qh5 {[%clk 0:02:11.1]} 17... Qf6 {[%clk 0:01:09]} 18. fxe5
{[%clk 0:02:05.1]} 18... Nxe5 {[%clk 0:01:04.3]} 19. Ne4 {[%clk 0:02:01.6]}
19... Qh6 {[%clk 0:00:58.7]} 20. Qxh6 {[%clk 0:01:52.4]} 20... Bxh6 {[%clk
0:00:59.6]} 21. Bxe5+ {[%clk 0:01:34.1]} 21... dxe5 {[%clk 0:00:53]} 22. Nc5
{[%clk 0:01:34.1]} 22... Be3 {[%clk 0:00:50.3]} 23. Na4 {[%clk 0:01:27.1]} 23...
c5 {[%clk 0:00:36.1]} 24. Rae1 {[%clk 0:01:23.6]} 24... Bb7+ {[%clk 0:00:35.4]}
25. Kh3 {[%clk 0:01:19.6]} 25... f4 {[%clk 0:00:33.4]} 26. Nc3 {[%clk
0:00:59.9]} 26... Bd2 {[%clk 0:00:22.1]} 27. Rxe5 {[%clk 0:00:59.3]} 27... Bxc3
{[%clk 0:00:21.1]} 28. Re7 {[%clk 0:00:59.2]} 28... Rac8 {[%clk 0:00:11]} 29.
gxf4 {[%clk 0:00:50.9]} 29... Bf6 {[%clk 0:00:10.9]} 30. Rd7 {[%clk 0:00:44.9]}
30... Bc6 {[%clk 0:00:10.9]} 31. Rd6 {[%clk 0:00:29.6]} 31... cxd6 {[%clk
0:00:10.6]} 0-1